[Event "*** Titled Tuesday Blitz"]
[Site "Chess.com"]
[Date "2020.04.21"]
[Round "7"]
[White "Darhild"]
[Black "tigra"]
[Result "0-1"]
[WhiteElo "2594"]
[BlackElo "2773"]
[TimeControl "180+1"]
[EndTime "11:22:03 PDT"]
[Termination "tigra won by resignation"]

1. Nf3 {[%clk 0:03:00.9]} 1... Nf6 {[%clk 0:02:59.1]} 2. g3 {[%clk 0:03:00.8]}
2... g6 {[%clk 0:02:59.6]} 3. Bg2 {[%clk 0:03:00.9]} 3... Bg7 {[%clk 0:03:00.3]}
4. O-O {[%clk 0:03:01.8]} 4... O-O {[%clk 0:03:01]} 5. d4 {[%clk 0:03:02.2]}
5... d5 {[%clk 0:03:01.6]} 6. c4 {[%clk 0:03:01.8]} 6... c6 {[%clk 0:03:00.8]}
7. Qb3 {[%clk 0:03:01.4]} 7... a5 {[%clk 0:02:59.6]} 8. cxd5 {[%clk 0:02:57.4]}
8... a4 {[%clk 0:02:59]} 9. Qa3 {[%clk 0:02:40.7]} 9... Nxd5 {[%clk 0:02:54.3]}
10. e4 {[%clk 0:02:38]} 10... Nb6 {[%clk 0:02:53.4]} 11. Qe3 {[%clk 0:02:25.7]}
11... Na6 {[%clk 0:02:47.5]} 12. Nc3 {[%clk 0:02:22.5]} 12... Nb4 {[%clk
0:02:41.6]} 13. Qe2 {[%clk 0:02:20.1]} 13... Bg4 {[%clk 0:02:40.3]} 14. a3
{[%clk 0:02:14.5]} 14... Na6 {[%clk 0:02:40.2]} 15. Rd1 {[%clk 0:02:10.7]} 15...
Bxf3 {[%clk 0:02:24.9]} 16. Bxf3 {[%clk 0:02:10.4]} 16... Bxd4 {[%clk
0:02:25.7]} 17. e5 {[%clk 0:02:07.9]} 17... Nc7 {[%clk 0:02:14.4]} 18. Bh6
{[%clk 0:01:50.5]} 18... Re8 {[%clk 0:02:13]} 19. Ne4 {[%clk 0:01:17.9]} 19...
Ne6 {[%clk 0:02:10.9]} 20. Ng5 {[%clk 0:01:16.1]} 20... Nxg5 {[%clk 0:01:57.9]}
21. Bxg5 {[%clk 0:01:15.3]} 21... Ra5 {[%clk 0:01:35.7]} 22. Qe4 {[%clk
0:00:46.4]} 22... c5 {[%clk 0:01:34]} 23. Qxb7 {[%clk 0:00:38.9]} 23... Nc4
{[%clk 0:01:18.8]} 24. Bc6 {[%clk 0:00:35.3]} 24... Qb8 {[%clk 0:01:18.2]} 25.
Qxb8 {[%clk 0:00:26.9]} 25... Rxb8 {[%clk 0:01:17.8]} 26. Bxe7 {[%clk
0:00:23.6]} 26... Rxb2 {[%clk 0:01:14]} 27. Rxd4 {[%clk 0:00:15.4]} 27... cxd4
{[%clk 0:01:13.9]} 28. f4 {[%clk 0:00:16.1]} 28... d3 {[%clk 0:01:07.9]} 29. Bb4
{[%clk 0:00:16]} 29... Ra7 {[%clk 0:00:57.2]} 30. Rd1 {[%clk 0:00:15.4]} 30...
d2 {[%clk 0:00:30.6]} 31. Kf2 {[%clk 0:00:15.6]} 31... Rxb4 {[%clk 0:00:17]} 32.
axb4 {[%clk 0:00:15.3]} 32... a3 {[%clk 0:00:17.7]} 33. Ke2 {[%clk 0:00:11.2]}
33... Nb2 {[%clk 0:00:10]} 34. Ra1 {[%clk 0:00:05]} 34... d1=Q+ {[%clk
0:00:09.6]} 35. Rxd1 {[%clk 0:00:05.6]} 35... Nxd1 {[%clk 0:00:10.5]} 36. Kxd1
{[%clk 0:00:06.5]} 36... a2 {[%clk 0:00:11]} 0-1

[Event "*** Titled Tuesday Blitz"]
[Site "Chess.com"]
[Date "2020.04.21"]
[Round "7"]
[White "Usurpov"]
[Black "Yurovskykh_Oleksandr"]
[Result "1/2-1/2"]
[WhiteElo "2441"]
[BlackElo "2604"]
[TimeControl "180+1"]
[EndTime "11:22:03 PDT"]
[Termination "Game drawn by agreement"]

1. e4 {[%clk 0:03:00.9]} 1... d5 {[%clk 0:02:35.2]} 2. exd5 {[%clk 0:02:58.3]}
2... Qxd5 {[%clk 0:02:35.3]} 3. Nf3 {[%clk 0:02:57.5]} 3... Bg4 {[%clk
0:02:33.5]} 4. Be2 {[%clk 0:02:56.2]} 4... Bxf3 {[%clk 0:02:33.5]} 5. Bxf3
{[%clk 0:02:57.1]} 5... Qe5+ {[%clk 0:02:33.4]} 6. Qe2 {[%clk 0:02:51.4]} 6...
Qxe2+ {[%clk 0:02:32.5]} 7. Kxe2 {[%clk 0:02:47.6]} 7... c6 {[%clk 0:02:32.7]}
8. d4 {[%clk 0:02:46.2]} 8... e6 {[%clk 0:02:32.7]} 9. c3 {[%clk 0:02:46.5]}
9... Nd7 {[%clk 0:02:31.8]} 10. Rd1 {[%clk 0:02:42.2]} 10... Ngf6 {[%clk
0:02:31.7]} 11. Nd2 {[%clk 0:02:41.6]} 11... Bd6 {[%clk 0:02:31.6]} 12. Nc4
{[%clk 0:02:39.8]} 12... Bc7 {[%clk 0:02:30.3]} 13. g3 {[%clk 0:02:40]} 13... h5
{[%clk 0:02:26.8]} 14. h4 {[%clk 0:02:38.6]} 14... g6 {[%clk 0:02:27.1]} 15. Bg5
{[%clk 0:02:37.1]} 15... O-O {[%clk 0:02:24.4]} 16. a4 {[%clk 0:02:36.3]} 16...
Kg7 {[%clk 0:02:17]} 17. Kf1 {[%clk 0:02:35.2]} 17... Rfe8 {[%clk 0:02:15.9]}
18. Kg2 {[%clk 0:02:34.5]} 18... Nd5 {[%clk 0:02:15.7]} 19. Ne3 {[%clk
0:02:30.6]} 19... Nxe3+ {[%clk 0:02:14]} 20. Bxe3 {[%clk 0:02:30.1]} 20... Nf6
{[%clk 0:02:12]} 21. a5 {[%clk 0:02:24.6]} 21... a6 {[%clk 0:02:11.8]} 22. Bg5
{[%clk 0:02:22.3]} 22... Rad8 {[%clk 0:02:10.9]} 23. b4 {[%clk 0:02:06]} 23...
Rd7 {[%clk 0:02:07.4]} 24. Re1 {[%clk 0:02:03.6]} 24... Nd5 {[%clk 0:02:06.2]}
25. Bd2 {[%clk 0:01:59.1]} 25... Bd8 {[%clk 0:01:51.8]} 26. Re2 {[%clk
0:01:56.4]} 26... Bf6 {[%clk 0:01:50.8]} 27. Rae1 {[%clk 0:01:56.4]} 27... Red8
{[%clk 0:01:50.1]} 28. Be4 {[%clk 0:01:53]} 28... Ne7 {[%clk 0:01:50]} 29. Bf4
{[%clk 0:01:48.2]} 29... Nd5 {[%clk 0:01:46.9]} 30. Bd2 {[%clk 0:01:47.7]} 30...
Be7 {[%clk 0:01:41.2]} 31. Bc2 {[%clk 0:01:39.6]} 31... Bd6 {[%clk 0:01:40.6]}
32. Bb3 {[%clk 0:01:37.8]} 32... Ne7 {[%clk 0:01:39.5]} 33. Bg5 {[%clk 0:01:36]}
33... Re8 {[%clk 0:01:33.8]} 34. Bxe7 {[%clk 0:01:34.4]} 34... Rdxe7 {[%clk
0:01:29.6]} 35. f4 {[%clk 0:01:34.3]} 35... Kf6 {[%clk 0:01:24.7]} 36. Kf3
{[%clk 0:01:34.6]} 36... Rb8 {[%clk 0:01:24.5]} 37. Bc4 {[%clk 0:01:34]} 37...
Rc7 {[%clk 0:01:13.5]} 38. Re3 {[%clk 0:01:33.2]} 38... Ke7 {[%clk 0:01:13.4]}
39. R3e2 {[%clk 0:01:33.3]} 39... Kd7 {[%clk 0:01:13.7]} 40. Re3 {[%clk
0:01:33]} 40... Rf8 {[%clk 0:01:13.5]} 41. R3e2 {[%clk 0:01:33]} 41... Ra8
{[%clk 0:01:02.8]} 42. Re3 {[%clk 0:01:28.9]} 42... Rcc8 {[%clk 0:01:03]} 43.
R3e2 {[%clk 0:01:28.6]} 43... Ra7 {[%clk 0:01:02.8]} 44. Re3 {[%clk 0:01:27.9]}
44... Bc7 {[%clk 0:01:03.1]} 45. Ra1 {[%clk 0:01:26.6]} 45... Rca8 {[%clk
0:01:03]} 46. Re2 {[%clk 0:01:26.7]} 46... b6 {[%clk 0:00:55.6]} 47. axb6 {[%clk
0:01:26.5]} 47... Bxb6 {[%clk 0:00:56.5]} 48. Rea2 {[%clk 0:01:26.6]} 48... a5
{[%clk 0:00:56.5]} 49. bxa5 {[%clk 0:01:26.1]} 49... Rxa5 {[%clk 0:00:53.9]} 50.
Ke3 {[%clk 0:01:26.1]} 50... Rxa2 {[%clk 0:00:52.4]} 51. Rxa2 {[%clk 0:01:27]}
51... Rb8 {[%clk 0:00:52.7]} 52. Rb2 {[%clk 0:01:25.7]} 52... Kc7 {[%clk
0:00:51.5]} 53. Kd3 {[%clk 0:01:25.7]} 53... Rd8 {[%clk 0:00:45.9]} 54. Ke4
{[%clk 0:01:23.4]} 54... c5 {[%clk 0:00:45.7]} 55. d5 {[%clk 0:01:21.8]} 55...
exd5+ {[%clk 0:00:45.1]} 56. Bxd5 {[%clk 0:01:22.5]} 56... Re8+ {[%clk
0:00:45.5]} 57. Kf3 {[%clk 0:01:22.4]} 57... Re1 {[%clk 0:00:33.4]} 58. c4
{[%clk 0:01:15.7]} 58... Re7 {[%clk 0:00:28.6]} 59. Re2 {[%clk 0:01:15]} 59...
Kd6 {[%clk 0:00:28.5]} 60. Rxe7 {[%clk 0:01:12.2]} 60... Kxe7 {[%clk 0:00:29.4]}
61. Ke4 {[%clk 0:01:08.2]} 61... Ba5 {[%clk 0:00:28.8]} 62. Kf3 {[%clk
0:01:07.6]} 62... f5 {[%clk 0:00:27]} 63. Bc6 {[%clk 0:01:07]} 63... Kf6 {[%clk
0:00:27.2]} 64. Bd5 {[%clk 0:01:07.3]} 64... Bc3 {[%clk 0:00:27]} 65. Bc6 {[%clk
0:01:07.3]} 1/2-1/2

[Event "*** Titled Tuesday Blitz"]
[Site "Chess.com"]
[Date "2020.04.21"]
[Round "7"]
[White "warmoatmeal"]
[Black "Larina_Marija"]
[Result "0-1"]
[WhiteElo "1975"]
[BlackElo "2247"]
[TimeControl "180+1"]
[EndTime "11:22:05 PDT"]
[Termination "Larina_Marija won on time"]

1. e4 {[%clk 0:03:00.8]} 1... c6 {[%clk 0:01:44.5]} 2. d4 {[%clk 0:02:58.9]}
2... d5 {[%clk 0:01:45.4]} 3. exd5 {[%clk 0:02:58.6]} 3... cxd5 {[%clk
0:01:46.3]} 4. c3 {[%clk 0:02:59.2]} 4... Nf6 {[%clk 0:01:46.2]} 5. Nf3 {[%clk
0:02:59.4]} 5... e6 {[%clk 0:01:46.5]} 6. Bf4 {[%clk 0:03:00]} 6... Bd6 {[%clk
0:01:47.4]} 7. Bg3 {[%clk 0:02:58.9]} 7... Nc6 {[%clk 0:01:47.4]} 8. Nbd2 {[%clk
0:02:59.4]} 8... O-O {[%clk 0:01:47.4]} 9. Bd3 {[%clk 0:02:59.3]} 9... Qc7
{[%clk 0:01:46.8]} 10. O-O {[%clk 0:02:58.7]} 10... a6 {[%clk 0:01:46.5]} 11. a4
{[%clk 0:02:58]} 11... Rb8 {[%clk 0:01:46.5]} 12. Qe2 {[%clk 0:02:57.4]} 12...
b5 {[%clk 0:01:46.8]} 13. axb5 {[%clk 0:02:58]} 13... axb5 {[%clk 0:01:47.7]}
14. Bxb5 {[%clk 0:02:57.6]} 14... Bxg3 {[%clk 0:01:48.6]} 15. hxg3 {[%clk
0:02:57.3]} 15... Qb7 {[%clk 0:01:49.5]} 16. Bxc6 {[%clk 0:02:56.7]} 16... Qxc6
{[%clk 0:01:50.4]} 17. Ne5 {[%clk 0:02:53.8]} 17... Qc7 {[%clk 0:01:50.6]} 18.
Rab1 {[%clk 0:02:50.1]} 18... Rb6 {[%clk 0:01:48.6]} 19. g4 {[%clk 0:02:46]}
19... Ba6 {[%clk 0:01:48.1]} 20. c4 {[%clk 0:01:53.8]} 20... dxc4 {[%clk
0:01:45.7]} 21. Ndxc4 {[%clk 0:01:52.9]} 21... Rb4 {[%clk 0:01:45.9]} 22. Rbc1
{[%clk 0:01:50.4]} 22... Rfb8 {[%clk 0:01:43.9]} 23. Qc2 {[%clk 0:01:35.5]}
23... Nd5 {[%clk 0:01:42.1]} 24. Rfd1 {[%clk 0:01:29.8]} 24... f6 {[%clk
0:01:38.3]} 25. Ne3 {[%clk 0:01:06.1]} 25... Qxc2 {[%clk 0:01:36.1]} 26. Nxc2
{[%clk 0:01:07]} 26... fxe5 {[%clk 0:01:35]} 27. Nxb4 {[%clk 0:01:07.1]} 27...
Rxb4 {[%clk 0:01:35.7]} 28. dxe5 {[%clk 0:01:00.3]} 28... Rxg4 {[%clk
0:01:36.5]} 29. Rc6 {[%clk 0:00:59.5]} 29... Bb7 {[%clk 0:01:35.7]} 30. Rd6
{[%clk 0:00:44.7]} 30... Nf4 {[%clk 0:01:35.1]} 31. Rd8+ {[%clk 0:00:44.7]}
31... Kf7 {[%clk 0:01:35.2]} 32. R8d7+ {[%clk 0:00:45.6]} 32... Kg6 {[%clk
0:01:35.3]} 33. Rxb7 {[%clk 0:00:46.5]} 33... Rxg2+ {[%clk 0:01:34.8]} 34. Kf1
{[%clk 0:00:46.2]} 34... Rh2 {[%clk 0:01:35.3]} 35. Ke1 {[%clk 0:00:41]} 35...
h5 {[%clk 0:01:29.9]} 36. Rdd7 {[%clk 0:00:40.4]} 36... h4 {[%clk 0:01:27]} 37.
Rxg7+ {[%clk 0:00:39.8]} 37... Kf5 {[%clk 0:01:27.9]} 38. b4 {[%clk 0:00:34.7]}
38... Ke4 {[%clk 0:01:25.4]} 39. Kd2 {[%clk 0:00:20.1]} 39... Rxf2+ {[%clk
0:01:24.7]} 40. Kc3 {[%clk 0:00:20.1]} 40... h3 {[%clk 0:01:25.2]} 41. b5 {[%clk
0:00:17.9]} 41... h2 {[%clk 0:01:24.8]} 42. Rh7 {[%clk 0:00:17.6]} 42... Ne2+
{[%clk 0:01:25]} 43. Kb4 {[%clk 0:00:16.2]} 43... Ng3 {[%clk 0:01:25.9]} 44.
Rbe7 {[%clk 0:00:15.5]} 44... Kxe5 {[%clk 0:01:24.7]} 45. Rh6 {[%clk 0:00:08]}
45... h1=Q {[%clk 0:01:24.6]} 46. Rexe6+ {[%clk 0:00:08.1]} 46... Kd5 {[%clk
0:01:24.8]} 47. Rxh1 {[%clk 0:00:09]} 47... Kxe6 {[%clk 0:01:22.1]} 48. Rh6+
{[%clk 0:00:07]} 48... Kd5 {[%clk 0:01:21.8]} 49. b6 {[%clk 0:00:07.3]} 49...
Rb2+ {[%clk 0:01:21.2]} 50. Kc3 {[%clk 0:00:02.2]} 50... Rb5 {[%clk 0:01:20.9]}
51. Kc2 {[%clk 0:00:03.1]} 51... Nf5 {[%clk 0:01:18.4]} 52. Rh5 {[%clk
0:00:02.7]} 52... Ke5 {[%clk 0:01:18.7]} 53. Kc3 {[%clk 0:00:02.3]} 53... Rxb6
{[%clk 0:01:19]} 54. Rh1 {[%clk 0:00:02.9]} 54... Rc6+ {[%clk 0:01:19.9]} 55.
Kb4 {[%clk 0:00:03]} 55... Rd6 {[%clk 0:01:20.8]} 56. Kb5 {[%clk 0:00:02.9]}
56... Kd5 {[%clk 0:01:21.6]} 57. Kb4 {[%clk 0:00:02.8]} 57... Nd4 {[%clk
0:01:22.5]} 58. Rd1 {[%clk 0:00:01.9]} 58... Rb6+ {[%clk 0:01:22.5]} 59. Kc3
{[%clk 0:00:02.2]} 59... Rb3+ {[%clk 0:01:23.4]} 0-1

[Event "*** Titled Tuesday Blitz"]
[Site "Chess.com"]
[Date "2020.04.21"]
[Round "7"]
[White "ArnaudovP"]
[Black "Bacyanide"]
[Result "1/2-1/2"]
[WhiteElo "2632"]
[BlackElo "2433"]
[TimeControl "180+1"]
[EndTime "11:22:07 PDT"]
[Termination "Game drawn by agreement"]

1. Nf3 {[%clk 0:02:59.8]} 1... d5 {[%clk 0:02:59.4]} 2. g3 {[%clk 0:02:56.9]}
2... Nf6 {[%clk 0:02:58.2]} 3. Bg2 {[%clk 0:02:54.4]} 3... c5 {[%clk 0:02:58.2]}
4. O-O {[%clk 0:02:53.1]} 4... h6 {[%clk 0:02:53.7]} 5. b3 {[%clk 0:02:47.2]}
5... Nc6 {[%clk 0:02:48.3]} 6. d4 {[%clk 0:02:45.1]} 6... cxd4 {[%clk
0:02:38.1]} 7. Nxd4 {[%clk 0:02:44.8]} 7... e5 {[%clk 0:02:38.1]} 8. Nxc6 {[%clk
0:02:44.8]} 8... bxc6 {[%clk 0:02:39]} 9. c4 {[%clk 0:02:44]} 9... Be6 {[%clk
0:02:36.3]} 10. Bb2 {[%clk 0:02:43.6]} 10... Bd6 {[%clk 0:02:32.7]} 11. Nc3
{[%clk 0:02:42.8]} 11... e4 {[%clk 0:02:25.1]} 12. cxd5 {[%clk 0:02:36.1]} 12...
cxd5 {[%clk 0:02:24.7]} 13. Nb5 {[%clk 0:02:35.8]} 13... Be7 {[%clk 0:02:20]}
14. Rc1 {[%clk 0:02:33.5]} 14... O-O {[%clk 0:02:18]} 15. Qd4 {[%clk 0:02:31]}
15... Bg4 {[%clk 0:02:01.7]} 16. Rc2 {[%clk 0:02:21.9]} 16... a6 {[%clk
0:01:58.6]} 17. Nc7 {[%clk 0:02:19.7]} 17... Rc8 {[%clk 0:01:57.4]} 18. Rfc1
{[%clk 0:02:14.4]} 18... Bxe2 {[%clk 0:01:52.8]} 19. Nxd5 {[%clk 0:02:10.9]}
19... Rxc2 {[%clk 0:01:38]} 20. Rxc2 {[%clk 0:02:03.2]} 20... Bd3 {[%clk
0:01:29.7]} 21. Nxe7+ {[%clk 0:01:59.5]} 21... Qxe7 {[%clk 0:01:29.8]} 22. Rc6
{[%clk 0:01:54.7]} 22... Rd8 {[%clk 0:01:27.4]} 23. Qe5 {[%clk 0:01:49]} 23...
Qxe5 {[%clk 0:00:52.8]} 24. Bxe5 {[%clk 0:01:47.4]} 24... Ng4 {[%clk 0:00:51.8]}
25. Bf4 {[%clk 0:01:38]} 25... g5 {[%clk 0:00:46.4]} 26. Bd6 {[%clk 0:01:36.5]}
26... Bb5 {[%clk 0:00:33]} 27. Rb6 {[%clk 0:01:34.7]} 27... Nf6 {[%clk
0:00:30.7]} 28. h3 {[%clk 0:01:33.6]} 28... Nd5 {[%clk 0:00:30]} 29. Rb8 {[%clk
0:01:32.7]} 29... Rxb8 {[%clk 0:00:28.9]} 30. Bxb8 {[%clk 0:01:31.9]} 30... Nc3
{[%clk 0:00:28]} 31. a4 {[%clk 0:01:25.5]} 31... Bd3 {[%clk 0:00:27.6]} 32. Bf1
{[%clk 0:01:22.3]} 32... f6 {[%clk 0:00:24.1]} 33. Ba7 {[%clk 0:01:17.8]} 33...
Kf7 {[%clk 0:00:22.7]} 34. Bd4 {[%clk 0:01:04.8]} 34... Ne2+ {[%clk 0:00:21.5]}
35. Bxe2 {[%clk 0:01:02.6]} 35... Bxe2 {[%clk 0:00:22.4]} 36. g4 {[%clk
0:01:02.2]} 36... Bd1 {[%clk 0:00:22.3]} 37. a5 {[%clk 0:00:58.7]} 37... Bxb3
{[%clk 0:00:22.2]} 38. Kg2 {[%clk 0:00:58.3]} 38... Be6 {[%clk 0:00:22.5]} 39.
Bc3 {[%clk 0:00:58]} 39... f5 {[%clk 0:00:22.9]} 40. gxf5 {[%clk 0:00:57.3]}
40... Bxf5 {[%clk 0:00:23.8]} 41. Bd4 {[%clk 0:00:56]} 41... Ke6 {[%clk
0:00:24.4]} 42. Bg7 {[%clk 0:00:53.3]} 42... h5 {[%clk 0:00:24.4]} 43. Bh6
{[%clk 0:00:52.8]} 43... g4 {[%clk 0:00:24.6]} 44. hxg4 {[%clk 0:00:51.9]} 44...
Bxg4 {[%clk 0:00:25.5]} 45. Be3 {[%clk 0:00:50]} 45... Bf3+ {[%clk 0:00:26.4]}
1/2-1/2

[Event "*** Titled Tuesday Blitz"]
[Site "Chess.com"]
[Date "2020.04.21"]
[Round "7"]
[White "TheRigos"]
[Black "AsaHoffmann"]
[Result "0-1"]
[WhiteElo "2500"]
[BlackElo "2360"]
[TimeControl "180+1"]
[EndTime "11:22:07 PDT"]
[Termination "AsaHoffmann won by resignation"]

1. e4 {[%clk 0:03:00.9]} 1... d6 {[%clk 0:02:56.1]} 2. d4 {[%clk 0:03:01]} 2...
Nf6 {[%clk 0:02:55.1]} 3. Nc3 {[%clk 0:03:00.9]} 3... c6 {[%clk 0:02:54.9]} 4.
Be3 {[%clk 0:02:54.4]} 4... Ng4 {[%clk 0:02:53.7]} 5. Bg5 {[%clk 0:02:53.7]}
5... Qb6 {[%clk 0:02:52.9]} 6. Qd2 {[%clk 0:02:48.4]} 6... e5 {[%clk 0:02:51.4]}
7. Nf3 {[%clk 0:02:43.8]} 7... Nd7 {[%clk 0:02:45]} 8. h3 {[%clk 0:02:42.6]}
8... Ngf6 {[%clk 0:02:42.4]} 9. Bc4 {[%clk 0:02:39]} 9... Be7 {[%clk 0:02:41.3]}
10. O-O {[%clk 0:02:35]} 10... O-O {[%clk 0:02:40.4]} 11. a4 {[%clk 0:02:35]}
11... a5 {[%clk 0:02:39.7]} 12. Bb3 {[%clk 0:02:31.4]} 12... Re8 {[%clk
0:02:38.8]} 13. Be3 {[%clk 0:02:28.7]} 13... Qc7 {[%clk 0:02:38]} 14. Ng5 {[%clk
0:02:24.2]} 14... Rf8 {[%clk 0:02:36.8]} 15. f4 {[%clk 0:02:24.3]} 15... exd4
{[%clk 0:02:28.5]} 16. Bxd4 {[%clk 0:02:24.2]} 16... Nc5 {[%clk 0:02:27.8]} 17.
e5 {[%clk 0:02:16.8]} 17... Nxb3 {[%clk 0:02:26.9]} 18. cxb3 {[%clk 0:02:15.9]}
18... Nd5 {[%clk 0:02:12.1]} 19. Nxh7 {[%clk 0:02:06.8]} 19... Kxh7 {[%clk
0:02:03.2]} 20. Qc2+ {[%clk 0:02:06.3]} 20... Kg8 {[%clk 0:01:56.2]} 21. Nxd5
{[%clk 0:02:06.5]} 21... Qd8 {[%clk 0:01:35.5]} 22. Bb6 {[%clk 0:01:59.2]} 22...
Qd7 {[%clk 0:01:32.6]} 23. Nxe7+ {[%clk 0:01:38.2]} 23... Qxe7 {[%clk
0:01:32.1]} 24. exd6 {[%clk 0:01:39.1]} 24... Qf6 {[%clk 0:01:15.9]} 25. Rfe1
{[%clk 0:01:32.1]} 25... Bf5 {[%clk 0:01:14.6]} 26. Qc3 {[%clk 0:01:30.7]} 26...
Qg6 {[%clk 0:01:11.1]} 27. Bc5 {[%clk 0:01:19.6]} 27... Be4 {[%clk 0:01:09.5]}
28. Re2 {[%clk 0:01:15.2]} 28... Bd5 {[%clk 0:01:08.3]} 29. Rae1 {[%clk
0:01:13]} 29... Rfd8 {[%clk 0:01:06.8]} 30. Qe5 {[%clk 0:01:04.5]} 30... Be6
{[%clk 0:01:01.2]} 31. g4 {[%clk 0:00:57.7]} 31... Qd3 {[%clk 0:00:54]} 32. f5
{[%clk 0:00:50.6]} 32... Bd5 {[%clk 0:00:51.3]} 33. Re3 {[%clk 0:00:47]} 33...
Qc2 {[%clk 0:00:49.2]} 34. R1e2 {[%clk 0:00:12.1]} 34... Qxc5 {[%clk 0:00:48]}
35. f6 {[%clk 0:00:12.2]} 35... Qxd6 {[%clk 0:00:44.6]} 36. fxg7 {[%clk
0:00:09.8]} 36... Qxe5 {[%clk 0:00:44]} 37. Rxe5 {[%clk 0:00:10.7]} 37... Kxg7
{[%clk 0:00:43.2]} 38. Rg5+ {[%clk 0:00:11.6]} 38... Kf8 {[%clk 0:00:42]} 39.
Kf2 {[%clk 0:00:10]} 39... Re8 {[%clk 0:00:41.4]} 40. Rd2 {[%clk 0:00:10.1]}
40... f6 {[%clk 0:00:39.7]} 41. Rh5 {[%clk 0:00:10.1]} 41... Kg7 {[%clk
0:00:39.1]} 42. g5 {[%clk 0:00:09.9]} 42... Re5 {[%clk 0:00:36.8]} 43. h4 {[%clk
0:00:08.3]} 43... fxg5 {[%clk 0:00:36.2]} 44. hxg5 {[%clk 0:00:09.2]} 44... Rf8+
{[%clk 0:00:35.5]} 45. Kg3 {[%clk 0:00:08.4]} 45... Rff5 {[%clk 0:00:35.1]} 46.
Kg4 {[%clk 0:00:09.3]} 46... Be6 {[%clk 0:00:33.1]} 47. Rd7+ {[%clk 0:00:05.3]}
47... Bxd7 {[%clk 0:00:32.2]} 48. Rh7+ {[%clk 0:00:06.2]} 48... Kxh7 {[%clk
0:00:31.4]} 0-1

[Event "*** Titled Tuesday Blitz"]
[Site "Chess.com"]
[Date "2020.04.21"]
[Round "7"]
[White "Igor_Lysyj"]
[Black "MarcoCorvi"]
[Result "1-0"]
[WhiteElo "2777"]
[BlackElo "2193"]
[TimeControl "180+1"]
[EndTime "11:22:08 PDT"]
[Termination "Igor_Lysyj won by resignation"]

1. d4 {[%clk 0:02:58.9]} 1... f5 {[%clk 0:02:58.5]} 2. g3 {[%clk 0:02:52.8]}
2... Nf6 {[%clk 0:02:58.5]} 3. Bg2 {[%clk 0:02:50.6]} 3... d6 {[%clk 0:02:58.8]}
4. Nd2 {[%clk 0:02:39.7]} 4... g6 {[%clk 0:02:58.8]} 5. c3 {[%clk 0:02:35]} 5...
Bg7 {[%clk 0:02:57.8]} 6. e4 {[%clk 0:02:33.8]} 6... fxe4 {[%clk 0:02:51.7]} 7.
Nxe4 {[%clk 0:02:33.6]} 7... Nxe4 {[%clk 0:02:50.5]} 8. Bxe4 {[%clk 0:02:32.7]}
8... d5 {[%clk 0:02:37.6]} 9. Bg2 {[%clk 0:02:32.2]} 9... O-O {[%clk 0:02:33]}
10. f4 {[%clk 0:02:29.2]} 10... c6 {[%clk 0:02:20.3]} 11. Nf3 {[%clk 0:02:27.2]}
11... Bg4 {[%clk 0:02:19.4]} 12. O-O {[%clk 0:02:26.7]} 12... Nd7 {[%clk
0:02:18.7]} 13. Qe1 {[%clk 0:02:24.6]} 13... Bxf3 {[%clk 0:02:02.9]} 14. Bxf3
{[%clk 0:02:23.7]} 14... Nf6 {[%clk 0:02:03.3]} 15. Qe2 {[%clk 0:02:21.6]} 15...
Qd7 {[%clk 0:02:01.2]} 16. Bd2 {[%clk 0:02:19.4]} 16... Rae8 {[%clk 0:01:54.2]}
17. Rae1 {[%clk 0:02:18.4]} 17... e6 {[%clk 0:01:48.9]} 18. Kg2 {[%clk
0:02:16.6]} 18... b5 {[%clk 0:01:42]} 19. g4 {[%clk 0:02:12.4]} 19... a6 {[%clk
0:01:41.7]} 20. g5 {[%clk 0:02:11.1]} 20... Ne4 {[%clk 0:01:38.4]} 21. Bxe4
{[%clk 0:02:10.2]} 21... dxe4 {[%clk 0:01:39.3]} 22. Qxe4 {[%clk 0:02:09.9]}
22... Qd5 {[%clk 0:01:39.7]} 23. b3 {[%clk 0:02:05.6]} 23... Qxe4+ {[%clk
0:01:23.1]} 24. Rxe4 {[%clk 0:02:04.8]} 24... Kf7 {[%clk 0:01:23.5]} 25. Rfe1
{[%clk 0:02:01.4]} 25... Re7 {[%clk 0:01:20.4]} 26. Bc1 {[%clk 0:01:51.4]} 26...
Rd8 {[%clk 0:01:20]} 27. Ba3 {[%clk 0:01:50.2]} 27... Ree8 {[%clk 0:01:19.8]}
28. Bc5 {[%clk 0:01:49]} 28... Rd5 {[%clk 0:01:18.4]} 29. c4 {[%clk 0:01:46.2]}
29... Rd7 {[%clk 0:01:13.7]} 30. Kf3 {[%clk 0:01:40.2]} 30... h5 {[%clk
0:01:05.3]} 31. gxh6 {[%clk 0:01:33.3]} 31... Bxh6 {[%clk 0:01:04.8]} 32. Kg4
{[%clk 0:01:33.7]} 32... bxc4 {[%clk 0:01:00.5]} 33. bxc4 {[%clk 0:01:32.9]}
33... Bg7 {[%clk 0:00:54.6]} 34. Rb1 {[%clk 0:01:29.1]} 34... Rh8 {[%clk
0:00:52.7]} 35. h3 {[%clk 0:01:28.5]} 35... Bf6 {[%clk 0:00:51]} 36. Rb6 {[%clk
0:01:24.3]} 36... Rh4+ {[%clk 0:00:43]} 37. Kg3 {[%clk 0:01:23.8]} 37... g5
{[%clk 0:00:43.5]} 38. Rxc6 {[%clk 0:01:18.9]} 38... Rxf4 {[%clk 0:00:42.1]} 39.
Rxf4 {[%clk 0:00:43.3]} 39... gxf4+ {[%clk 0:00:43]} 40. Kxf4 {[%clk 0:00:43.2]}
40... Bxd4 {[%clk 0:00:42.3]} 41. Rd6 {[%clk 0:00:38.3]} 41... e5+ {[%clk
0:00:24.6]} 42. Ke4 {[%clk 0:00:31.1]} 42... Rxd6 {[%clk 0:00:16.6]} 43. Bxd6
{[%clk 0:00:30.3]} 43... Ke6 {[%clk 0:00:17.3]} 44. Bb8 {[%clk 0:00:28.8]} 44...
Bc5 {[%clk 0:00:15.4]} 45. Bxe5 {[%clk 0:00:27.6]} 45... Be7 {[%clk 0:00:16]}
46. Bg3 {[%clk 0:00:26.7]} 46... Bh4 {[%clk 0:00:16.9]} 47. Bxh4 {[%clk
0:00:26.3]} 1-0